bitfinex/quotes_SOLUSD_20241113
["timestamp","ask_amount","ask_price","bid_price","bid_amount"]
[1731500114350,8.93403178,207.3,207.24,2.4126]
[1731500114731,16.8771,207.38,207.24,8.4442]
[1731500115049,13.94616698,207.3,207.24,8.4442]
[1731500115356,13.94616698,207.3,207.23,21.3275]
[1731500115357,13.94616698,207.25,207.2,6.0327]
[1731500115647,13.94616698,207.25,207.18,6.2732]
[1731500115648,13.94616698,207.21,207.18,6.2732]
[1731500115943,13.94616698,207.21,207.17,18.5432]
[1731500116150,13.94616698,207.21,207.17,2.4134]
[1731500116741,13.94616698,207.21,207.16,6.0339]
[1731500117138,13.94616698,207.2,207.16,6.0339]
[1731500117537,13.94616698,207.18,207.14,2.4138]
[1731500117733,13.94616698,207.17,207.12,6.0351]
[1731500117933,13.94616698,207.17,207.12,8.4491]
[1731500118449,4.8254,207.24,207.08,6.4231]
[1731500118450,13.94616698,207.15,207.1,2.4142]
[1731500118854,13.94616698,207.13,207.1,2.4142]
[1731500119349,13.94616698,207.15,207.1,2.4142]
[1731500119931,13.94616698,207.15,207.11,23.776884]
[1731500120948,13.94616698,207.15,207.11,2.4141]
[1731500121436,13.94616698,207.15,207.12,23.776884]
[1731500123132,13.94616698,207.16,207.12,23.776884]
[1731500123452,13.94616698,207.17,207.11,23.776884]
[1731500123656,13.94616698,207.18,207.11,23.776884]
[1731500124461,13.94616698,207.18,207.08,6.4231]
[1731500124462,13.94616698,207.21,207.13,23.776884]
[1731500124939,13.94616698,207.2,207.13,23.776884]
[1731500125554,13.94616698,207.21,207.14,8.4483]
[1731500125739,13.94616698,207.22,207.15,23.776884]
[1731500125933,13.94616698,207.24,207.15,23.776884]
[1731500126263,13.94616698,207.28,207.17,23.776884]
[1731500127567,13.94616698,207.28,207.18,8.4467]
[1731500127935,4.8244,207.28,207.19,23.776884]
[1731500128261,4.8244,207.28,207.16,6.5945]
[1731500128450,13.94616698,207.18,207.14,8.4483]
[1731500128839,13.94616698,207.19,207.14,8.4483]
[1731500129155,13.94616698,207.23,207.14,20.5174]
[1731500129346,13.94616698,207.25,207.14,20.5174]
[1731500129546,13.94616698,207.25,207.15,43.776884]
[1731500130060,4.8234,207.32,207.15,43.776884]
[1731500130265,13.94616698,207.27,207.15,43.776884]
[1731500130460,13.94616698,207.25,207.15,43.776884]
[1731500130653,13.94616698,207.3,207.15,43.776884]
[1731500130654,13.94616698,207.22,207.15,23.776884]
[1731500130965,13.94616698,207.21,207.15,23.776884]
[1731500131455,13.94616698,207.22,207.15,23.776884]
[1731500131966,13.94616698,207.22,207.17,23.776884]
[1731500132145,13.94616698,207.24,207.17,23.776884]
[1731500132342,13.94616698,207.23,207.17,23.776884]
[1731500133338,13.94616698,207.23,207.18,2.4133]
[1731500133540,13.94616698,207.23,207.19,23.776884]
[1731500135469,13.94616698,207.27,207.19,32.223084]
[1731500135842,13.94616698,207.25,207.19,32.223084]
[1731500136246,13.94616698,207.3,207.19,23.776884]
[1731500136247,13.94616698,207.21,207.19,23.776884]
[1731500136456,13.94616698,207.21,207.18,23.776884]
[1731500136943,13.94616698,207.21,207.16,23.776884]
[1731500137366,13.94616698,207.23,207.17,8.447]
[1731500137665,13.94616698,207.23,207.18,23.776884]
[1731500137964,13.94616698,207.21,207.18,23.776884]
[1731500139958,13.94616698,207.23,207.18,23.776884]
[1731500141069,13.94616698,207.23,207.18,26.190184]
[1731500144748,13.94616698,207.19,207.17,23.776884]
[1731500144952,13.94616698,207.19,207.05,2.26567795]
[1731500144953,13.94616698,207.18,207.06,22.8738]
[1731500145161,13.94616698,207.12,207.06,22.8738]
[1731500145361,13.94616698,207.2,207.06,22.8738]
[1731500145362,13.94616698,207.14,207.06,22.8738]
[1731500146058,13.94616698,207.13,207.06,22.8738]
[1731500146248,13.94616698,207.13,207.07,8.4512]
[1731500146662,13.94616698,207.13,207.08,23.776884]
[1731500146864,8.93878129,207.15,207.08,23.776884]
[1731500148156,8.93878129,207.15,207.09,6.036]
[1731500148366,8.93878129,207.15,207.1,23.776884]
[1731500148771,13.9669436,207.15,207.1,23.776884]
[1731500149159,13.9669436,207.13,207.1,23.776884]
[1731500151464,13.9669436,207.17,207.1,32.226784]
[1731500154055,12.0642,207.23,207.1,29.812584]
[1731500154056,13.9669436,207.15,207.1,29.812584]
[1731500154373,13.9669436,207.13,207.1,29.812584]
[1731500155276,13.9669436,207.13,207.1,32.226784]
[1731500155577,13.9669436,207.18,207.1,32.226784]
[1731500155875,13.9669436,207.15,207.1,32.226784]
[1731500156487,13.9669436,207.17,207.1,32.226784]
[1731500156672,4.8265,207.19,207.1,32.226784]
[1731500156982,13.9669436,207.17,207.1,32.226784]
[1731500157457,4.8265,207.19,207.1,32.226784]
[1731500157668,13.9669436,207.14,207.1,32.226784]
[1731500158367,13.9669436,207.15,207.1,32.226784]
[1731500158777,13.9669436,207.12,207.06,6.0366]
[1731500159078,13.9669436,207.1,207.06,6.0366]
[1731500159261,13.9669436,207.14,207.06,6.0366]
[1731500160066,13.9669436,207.14,207.07,23.776884]
[1731500160267,13.9669436,207.12,207.09,23.776884]
[1731500160470,27.7016,207.19,207.07,23.776884]
[1731500160471,13.9669436,207.1,207.07,23.776884]
[1731500161271,13.9669436,207.1,207.07,26.191484]
[1731500163067,18.7955436,207.1,207.07,23.776884]
[1731500163384,18.7955436,207.1,207.03,0.1433491]
[1731500163385,13.9669436,207.08,207.03,0.1433491]
[1731500163591,13.9669436,207.04,207.03,0.1433491]
[1731500164581,13.9669436,207.06,207.03,0.1433491]
[1731500166879,13.9669436,207.04,207.03,0.1433491]
[1731500170991,13.9669436,207.06,207.03,23.9202331]
[1731500171489,4.8254,207.24,207.13,23.776884]
[1731500171690,13.9669436,207.25,207.13,23.776884]
[1731500171986,24.2155,207.34,207.13,23.776884]
[1731500171987,2.17634361,207.34,207.16,43.902374]
[1731500172175,13.9669436,207.31,207.16,43.902374]
[1731500172863,13.9669436,207.29,207.17,20.5143]
[1731500173075,13.9669436,207.29,207.18,23.776884]
[1731500173277,13.9669436,207.27,207.18,23.776884]
[1731500173681,13.9669436,207.25,207.18,23.776884]
[1731500173902,13.9669436,207.27,207.18,23.776884]
[1731500174182,13.9669436,207.29,207.18,23.776884]
[1731500174969,13.9669436,207.29,207.2,23.776884]
[1731500175165,13.9669436,207.27,207.2,23.776884]
[1731500175589,13.9669436,207.29,207.2,23.776884]
[1731500176082,13.9669436,207.29,207.22,23.776884]
[1731500176470,13.9669436,207.27,207.22,23.776884]
[1731500176885,13.9669436,207.29,207.22,23.776884]
[1731500177263,13.9669436,207.27,207.22,23.776884]
[1731500177583,13.9669436,207.25,207.2,23.776884]
[1731500178391,13.9669436,207.23,207.2,23.776884]
[1731500180679,13.9669436,207.21,207.17,23.776884]
[1731500180875,4.8243,207.28,207.17,23.776884]
[1731500180876,13.9669436,207.19,207.17,23.776884]
[1731500181471,13.9669436,207.19,207.15,23.776884]
[1731500181673,13.9669436,207.17,207.1,6.0356]
[1731500181889,13.9669436,207.11,207.07,8.7396]
[1731500182100,13.9669436,207.11,207.06,6.0368]
[1731500182101,13.9669436,207.1,207.06,6.0368]
[1731500182414,13.9669436,207.12,207.06,6.0368]
[1731500183700,13.9669436,207.12,207.07,26.191384]
[1731500185082,13.9669436,207.12,207.07,23.776884]
[1731500185289,13.9669436,207.1,207.05,23.776884]
[1731500185488,13.9669436,207.08,207.05,23.776884]
[1731500186896,13.9669436,207.08,207.03,0.1433491]
[1731500187082,13.9669436,207.08,207.03,2.5583491]
[1731500187283,13.9669436,207.1,207.03,8.5960491]
[1731500187687,13.9669436,207.12,207.03,8.5960491]
[1731500188304,13.9669436,207.12,207.04,23.776884]
[1731500188801,13.9669436,207.12,207.06,23.776884]
[1731500189897,13.9669436,207.14,207.06,32.228284]
[1731500190600,13.9669436,207.12,207.06,32.228284]
[1731500190994,18.7950436,207.12,207.06,32.228284]
[1731500191199,13.9669436,207.1,207.06,23.776884]
[1731500191589,13.9669436,207.1,207.06,26.191584]
[1731500192489,13.9669436,207.12,207.06,26.191584]
[1731500195212,13.9669436,207.14,207.06,32.228384]
[1731500197103,13.9669436,207.1,207.06,23.776884]
[1731500197299,13.9669436,207.1,207.05,23.776884]
[1731500197999,18.7950436,207.12,207.05,23.776884]
[1731500198900,13.9669436,207.12,207.06,8.4515]
[1731500199103,13.9669436,207.12,207.07,23.776884]
[1731500199304,13.9669436,207.14,207.07,23.776884]
[1731500199622,13.9669436,207.16,207.07,23.776884]
[1731500200118,13.9669436,207.18,207.07,23.776884]
[1731500200818,13.9669436,207.18,207.09,23.776884]
[1731500201017,13.9669436,207.17,207.09,23.776884]
[1731500201515,13.9669436,207.16,207.09,23.776884]
[1731500201820,13.9669436,207.16,207.1,8.4499]
[1731500202119,13.9669436,207.16,207.11,23.776884]
[1731500203612,18.7942436,207.16,207.11,23.776884]
[1731500204301,18.7942436,207.16,207.11,26.190984]
[1731500205106,13.9669436,207.16,207.11,26.190984]
[1731500205303,18.7938436,207.18,207.11,26.190984]
[1731500205510,13.9669436,207.2,207.13,23.776884]
[1731500205721,13.9669436,207.24,207.13,23.776884]
[1731500205923,13.9669436,207.26,207.14,20.0]
[1731500206118,13.9669436,207.26,207.15,23.776884]
[1731500206325,18.7918436,207.26,207.16,8.4474]
[1731500206499,18.7918436,207.26,207.17,23.776884]
[1731500207615,18.7918436,207.26,207.19,23.776884]
[1731500208221,13.9669436,207.26,207.19,23.776884]
[1731500208396,4.8246,207.27,207.19,23.776884]
[1731500209322,4.8246,207.27,207.2,2.4131]
[1731500209626,4.8246,207.27,207.21,23.776884]
[1731500209999,13.9669436,207.26,207.18,6.0334]
[1731500210200,13.9669436,207.24,207.19,23.776884]
[1731500210420,13.9669436,207.22,207.18,23.776884]
[1731500210725,13.9669436,207.22,207.16,23.776884]
[1731500211325,13.9669436,207.21,207.16,2.4135]
[1731500211522,13.9669436,207.21,207.15,8.4479]
[1731500212706,18.7929436,207.21,207.16,23.776884]
[1731500213703,13.9669436,207.22,207.16,23.776884]
[1731500213919,13.9669436,207.22,207.16,26.190384]
[1731500214722,13.9669436,207.22,207.16,23.776884]
[1731500215621,13.9669436,207.22,207.16,26.190384]
[1731500216006,2.13992699,207.26,207.16,26.190384]
[1731500216007,4.8257,207.23,207.16,32.224284]
[1731500216212,18.7922436,207.24,207.16,32.224284]
[1731500216614,20.0,207.23,207.16,32.224284]
[1731500217411,13.9669436,207.26,207.16,32.224284]
[1731500217810,4.8239,207.3,207.16,44.292184]
[1731500218127,13.9669436,207.27,207.16,44.292184]
[1731500218343,13.9669436,207.25,207.16,44.292184]
[1731500218629,13.9669436,207.27,207.16,44.292184]
[1731500219005,20.0,207.26,207.16,44.292184]
[1731500219514,18.7915436,207.27,207.16,44.292184]
[1731500220826,13.9669436,207.27,207.16,44.292184]
[1731500221022,4.8234,207.32,207.19,23.776884]
[1731500221225,4.8232,207.33,207.21,23.776884]
[1731500221428,14.0924336,207.34,207.22,0.12549]
[1731500221429,0.12549,207.34,207.22,0.12549]
[1731500221627,0.12549,207.34,207.23,6.1369]
[1731500221823,0.12549,207.34,207.24,23.776884]
[1731500222138,4.94849,207.34,207.24,23.776884]
[1731500222448,0.12549,207.34,207.24,23.776884]
[1731500222836,18.9155336,207.34,207.24,23.776884]
[1731500223124,13.9669436,207.3,207.23,6.1369]
[1731500223350,13.9669436,207.29,207.23,6.1369]
[1731500223511,13.9669436,207.3,207.23,14.5815]
[1731500223711,13.9669436,207.29,207.23,14.5815]
[1731500224011,13.9669436,207.31,207.23,14.5815]
[1731500224206,13.9669436,207.3,207.23,14.5815]
[1731500224433,18.7908436,207.3,207.24,26.189484]
[1731500226440,20.0,207.31,207.24,32.221084]
[1731500226624,13.9669436,207.32,207.24,32.221084]
[1731500226826,20.0,207.33,207.24,32.221084]
[1731500227122,14.0924336,207.34,207.24,32.221084]
[1731500227936,14.0924336,207.34,207.24,44.284384]
[1731500229736,18.9153336,207.34,207.24,44.284384]
[1731500230436,13.9669436,207.32,207.24,44.284384]
[1731500230628,13.9669436,207.32,207.24,32.221084]
[1731500232144,13.9669436,207.3,207.24,32.221084]
[1731500232520,13.9669436,207.3,207.24,8.4442]
[1731500233119,13.9669436,207.28,207.24,6.0316]
[1731500233355,13.9669436,207.26,207.23,6.1369]
[1731500233720,20.0,207.27,207.23,6.1369]
[1731500233936,13.9669436,207.32,207.24,2.4126]
[1731500234122,20.0,207.31,207.24,2.4126]
[1731500234332,13.9669436,207.29,207.24,6.0316]
[1731500234527,13.9669436,207.28,207.24,23.776884]
[1731500234727,13.9669436,207.26,207.23,6.1369]
[1731500235250,13.9669436,207.28,207.23,6.1369]
[1731500235919,13.9669436,207.28,207.24,23.776884]
[1731500237336,13.9669436,207.28,207.22,23.776884]
[1731500237547,13.9669436,207.26,207.21,23.776884]
[1731500239240,13.9669436,207.24,207.19,23.776884]
[1731500239422,13.9669436,207.22,207.19,23.776884]
[1731500239928,13.9669436,207.23,207.19,23.776884]
[1731500241846,4.8253,207.24,207.19,26.190084]
[1731500242036,13.9669436,207.26,207.19,32.223184]
[1731500243518,18.7917436,207.26,207.19,32.223184]
[1731500244029,12.0599,207.3,207.19,32.223184]
[1731500244030,18.7910436,207.3,207.19,32.223184]
[1731500245235,18.7910436,207.3,207.2,20.0]
[1731500245422,4.8241,207.3,207.21,23.776884]
[1731500245623,4.8241,207.3,207.23,23.776884]
[1731500245925,0.12549,207.34,207.25,23.776884]
[1731500246132,4.94849,207.34,207.25,23.776884]
[1731500246532,4.94849,207.34,207.27,23.776884]
[1731500247431,13.9669436,207.32,207.25,23.776884]
[1731500247637,13.9669436,207.31,207.25,23.776884]
[1731500247824,13.9669436,207.32,207.25,23.776884]
[1731500248039,13.9669436,207.33,207.25,23.776884]
[1731500248243,20.0,207.32,207.25,23.776884]
[1731500248439,33.9669436,207.32,207.25,23.776884]
[1731500248746,13.9669436,207.32,207.26,2.8949]
[1731500248945,18.7903436,207.32,207.27,23.776884]
[1731500249151,13.9669436,207.32,207.27,23.776884]
[1731500249645,18.7903436,207.32,207.27,23.776884]
[1731500249848,0.12549,207.34,207.27,23.776884]
[1731500250026,13.9669436,207.33,207.27,23.776884]
[1731500250921,18.7901436,207.33,207.27,26.671584]
[1731500253242,18.7901436,207.33,207.27,23.776884]
[1731500253446,13.9669436,207.31,207.27,23.776884]
[1731500253650,13.9669436,207.29,207.24,23.776884]
[1731500255255,13.9669436,207.29,207.24,26.671984]
[1731500257748,13.9669436,207.26,207.18,7.24]
[1731500258730,13.9669436,207.24,207.18,7.24]
[1731500258931,13.9669436,207.24,207.19,23.776884]
[1731500260127,18.7923436,207.24,207.19,23.776884]
[1731500260334,13.9669436,207.22,207.19,23.776884]
[1731500261150,13.9669436,207.23,207.19,23.776884]
[1731500262933,13.9669436,207.24,207.19,23.776884]
[1731500263356,13.9669436,207.23,207.19,23.776884]
[1731500267480,18.7926436,207.22,207.17,23.776884]
[1731500267759,13.9669436,207.2,207.17,23.776884]
[1731500268468,13.9669436,207.21,207.16,33.913684]
[1731500268763,13.9669436,207.17,207.11,7.2422]
[1731500269062,13.9669436,207.15,207.11,7.2422]
[1731500269259,13.9669436,207.15,207.07,6.5754]
[1731500269554,13.9669436,207.15,207.08,2.8972]
[1731500269855,13.9669436,207.15,207.08,10.1407]
[1731500269856,18.7943436,207.15,207.08,10.1407]
[1731500270231,20.0,207.19,207.08,10.1407]
[1731500270232,13.9669436,207.16,207.08,10.1407]
[1731500270745,13.9669436,207.17,207.08,10.1407]
[1731500271258,24.2231,207.27,207.08,10.1407]
[1731500271259,13.9669436,207.22,207.11,23.776884]
[1731500271440,18.7927436,207.22,207.13,23.776884]
[1731500271853,13.9669436,207.24,207.13,23.776884]
[1731500272764,13.9669436,207.23,207.13,23.776884]
[1731500272961,18.7925436,207.23,207.15,23.776884]
[1731500273163,13.9669436,207.22,207.15,23.776884]
[1731500274258,18.7925436,207.23,207.17,23.776884]
[1731500274436,13.9669436,207.2,207.13,2.4138]
[1731500274638,13.9669436,207.17,207.07,6.5754]
[1731500274864,13.9669436,207.15,207.09,6.0358]
[1731500275636,20.0,207.14,207.09,6.0358]
[1731500275855,13.9669436,207.15,207.1,23.776884]
[1731500276160,16.8894,207.23,207.1,23.776884]
[1731500276161,20.0,207.18,207.1,23.776884]
[1731500276965,13.9669436,207.18,207.12,23.776884]
[1731500278365,13.9669436,207.18,207.13,2.4139]
[1731500278542,13.9669436,207.18,207.14,23.776884]
[1731500279050,18.7936436,207.18,207.13,23.776884]
[1731500279846,13.9669436,207.18,207.13,23.776884]
[1731500280046,18.7936436,207.18,207.13,23.776884]
[1731500280261,18.7933436,207.19,207.13,23.776884]
[1731500280461,13.9669436,207.18,207.13,26.190784]
[1731500280645,13.9669436,207.17,207.13,26.190784]
[1731500281452,13.9669436,207.19,207.13,26.190784]
[1731500282068,18.7929436,207.21,207.13,32.225584]
[1731500282257,13.9669436,207.23,207.13,44.295284]
[1731500283461,13.9669436,207.24,207.13,44.295284]
[1731500283663,13.9669436,207.23,207.13,32.225584]
[1731500283850,13.9669436,207.21,207.13,32.225584]
[1731500284566,13.9669436,207.22,207.13,32.225584]
[1731500285457,18.7926436,207.23,207.13,32.225584]
[1731500287268,13.9669436,207.21,207.13,32.225584]
[1731500288464,13.9669436,207.23,207.14,22.1509]
[1731500288970,13.9669436,207.23,207.15,23.776884]
[1731500289568,18.7925436,207.23,207.17,23.776884]
[1731500289765,13.9669436,207.23,207.17,23.776884]
[1731500291266,18.7925436,207.23,207.17,26.190284]
[1731500291758,13.9669436,207.21,207.17,23.776884]
[1731500292264,13.9669436,207.21,207.17,26.190284]
[1731500292958,13.9669436,207.19,207.15,23.776884]
[1731500293768,13.9669436,207.19,207.14,6.522]
[1731500293769,18.7936436,207.19,207.14,6.522]
[1731500293979,13.9669436,207.17,207.1,2.4142]
[1731500294148,4.8267,207.19,207.1,2.4142]
[1731500294149,13.9669436,207.15,207.1,2.4142]
[1731500295549,13.9669436,207.15,207.11,23.776884]
[1731500295848,2.20571097,207.21,207.11,23.776884]
[1731500295849,13.9669436,207.17,207.11,23.776884]
[1731500297572,13.9669436,207.17,207.12,2.414]
[1731500298251,18.7938436,207.17,207.12,2.414]
[1731500298452,13.9669436,207.21,207.13,23.776884]
[1731500298770,8.93136625,207.23,207.13,23.776884]
[1731500299870,8.93136625,207.26,207.15,23.776884]
[1731500300172,8.93136625,207.24,207.15,23.776884]
[1731500300859,18.77992317,207.24,207.16,8.4474]
[1731500301066,18.77992317,207.24,207.17,23.776884]
[1731500301476,18.77992317,207.24,207.09,34.3982]
[1731500301477,13.95462317,207.19,207.12,6.035]
[1731500301676,13.95462317,207.19,207.13,23.776884]
[1731500304166,13.95462317,207.19,207.14,8.4483]
[1731500304367,18.78112317,207.19,207.15,23.776884]
[1731500304756,18.78112317,207.19,207.13,23.776884]
[1731500304960,18.78112317,207.19,207.12,23.776884]
[1731500305577,13.95462317,207.15,207.12,23.776884]
[1731500306670,13.95462317,207.15,207.12,26.190884]
[1731500309172,13.95462317,207.15,207.11,6.0354]
[1731500309373,13.95462317,207.13,207.09,8.8065]
[1731500310073,13.95462317,207.13,207.09,6.3922]
[1731500310277,13.95462317,207.11,207.05,18.2473]
[1731500310462,13.95462317,207.1,207.05,18.2473]
[1731500310667,13.95462317,207.1,207.05,24.2844]
[1731500311975,18.78322317,207.1,207.03,6.4343491]
[1731500312164,13.95462317,207.04,207.03,0.1433491]
[1731500318169,38.91001317,207.04,207.03,0.1433491]
[1731500320283,68.65953634,207.04,206.91,2.4164]
[1731500320457,13.95462317,206.94,206.91,2.4164]
[1731500321671,13.95462317,206.94,206.91,23.776884]
[1731500323084,13.95462317,206.95,206.91,23.776884]
[1731500323385,27.8698,207.04,206.91,23.776884]
[1731500323386,13.95462317,207.02,206.92,16.3426]
[1731500323581,13.95462317,207.04,206.94,8.4564]
[1731500323769,13.95462317,207.06,206.96,6.4343]
[1731500323974,4.8292,207.08,206.96,6.4343]
[1731500323975,13.95462317,207.07,206.97,23.776884]
[1731500324282,13.95462317,207.05,206.97,23.776884]
[1731500324861,13.95462317,207.05,206.98,8.4548]
[1731500325083,13.95462317,207.05,206.99,23.776884]
[1731500325286,29.82422317,207.1,206.98,8.4548]
[1731500325287,13.95462317,207.02,206.98,6.0392]
[1731500325588,13.95462317,207.01,206.98,6.0392]
[1731500325764,13.95462317,207.02,206.98,6.0392]
[1731500326769,13.95462317,207.01,206.97,23.776884]
[1731500330377,18.78502317,207.02,206.97,26.192584]
[1731500330577,20.0,207.01,206.97,23.776884]
[1731500331084,33.95462317,207.01,206.97,23.776884]
[1731500332574,38.78522317,207.01,206.97,23.776884]
[1731500332772,13.95462317,206.99,206.94,6.0402]
[1731500333091,13.95462317,206.97,206.94,6.0402]
[1731500333292,4.8306,207.01,206.91,6.5481]
[1731500333293,13.95462317,206.96,206.91,6.5481]
[1731500333470,13.95462317,206.94,206.91,6.5481]
[1731500334973,13.95462317,206.95,206.91,6.5481]
[1731500335694,13.95462317,206.92,206.84,2.4173]
[1731500335875,13.95462317,206.9,206.84,2.4173]
[1731500336078,13.95462317,206.92,206.84,2.4173]
[1731500336276,4.8299,207.04,206.86,0.1]
[1731500336481,4.8299,207.04,206.85,21.4307]
[1731500336482,13.95462317,206.99,206.85,21.4307]
[1731500336687,13.95462317,206.96,206.85,21.4307]
[1731500337568,13.95462317,206.95,206.86,23.776884]
[1731500337768,18.78672317,206.95,206.87,8.4593]
[1731500337972,18.78672317,206.95,206.88,23.776884]
[1731500338190,12.0755,207.03,206.88,23.776884]
[1731500338372,20.0,206.96,206.88,23.776884]
[1731500338578,13.95462317,206.95,206.88,23.776884]
[1731500339496,13.95462317,206.95,206.9,23.776884]
[1731500339688,13.95462317,206.95,206.85,21.4307]
[1731500339689,13.95462317,206.91,206.85,14.8229]
[1731500340000,13.95462317,206.88,206.85,6.0428]
[1731500340596,13.95462317,206.87,206.8,15.5997]
[1731500340803,13.95462317,206.87,206.83,2.8888411]
[1731500341391,13.95462317,206.87,206.84,23.776884]
[1731500341694,13.95462317,206.92,206.84,23.776884]
[1731500342298,13.95462317,206.89,206.84,23.776884]
[1731500342773,13.95462317,206.87,206.84,23.776884]
[1731500346610,13.95462317,206.89,206.84,32.237484]
[1731500348482,18.78812317,206.89,206.84,32.237484]
[1731500349202,13.95462317,206.94,206.84,32.237484]
[1731500349610,13.95462317,206.96,206.86,23.776884]
[1731500350187,13.95462317,206.96,206.88,23.776884]
[1731500350694,4.8292,207.07,206.91,6.3973]
[1731500350997,13.95462317,207.03,206.92,23.776884]
[1731500351203,13.95462317,207.02,206.92,23.776884]
[1731500351404,13.95462317,207.03,206.92,23.776884]
[1731500351588,13.95462317,207.04,206.92,23.776884]
[1731500351785,13.95462317,207.04,206.93,8.4568]
[1731500352005,13.95462317,207.04,206.94,23.776884]
[1731500353096,20.0,207.04,206.94,23.776884]
[1731500353617,13.95462317,207.04,206.94,23.776884]
[1731500353910,13.95462317,207.04,206.96,23.776884]
[1731500354091,20.0,207.04,206.96,23.776884]
[1731500354287,13.95462317,207.02,206.96,23.776884]
[1731500355821,18.78482317,207.03,206.97,2.4158]
[1731500356601,13.95462317,207.01,206.95,6.0401]
[1731500357005,13.95462317,207.02,206.95,6.0401]
[1731500357211,20.0,207.04,206.96,23.776884]
[1731500357505,13.95462317,207.08,206.97,15.974]
[1731500357714,18.78362317,207.08,206.98,30.403484]
[1731500358011,18.78362317,207.08,207.0,23.776884]
[1731500358900,18.78362317,207.08,207.01,2.4153]
[1731500359291,13.95462317,207.06,207.01,2.4153]
[1731500360317,13.95462317,207.03,206.99,6.0389]
[1731500361114,13.95462317,207.01,206.95,6.0399]
[1731500361315,13.95462317,207.0,206.95,6.0399]
[1731500361514,13.95462317,207.01,206.95,6.0399]
[1731500362900,13.95462317,207.02,206.95,6.0399]
[1731500364327,12.0729,207.08,206.95,6.0399]
[1731500364328,13.95462317,207.06,206.96,23.776884]
[1731500364498,13.95462317,207.02,206.96,23.776884]
[1731500364907,13.95462317,207.02,206.95,6.0399]
[1731500365999,13.95462317,207.06,206.96,23.776884]
[1731500366419,13.95462317,207.02,206.96,23.776884]
[1731500366919,4.8288,207.09,206.96,23.776884]
[1731500366920,13.95462317,207.03,206.96,23.776884]
[1731500367695,13.95462317,207.03,206.97,8.4553]
[1731500367899,18.78442317,207.05,206.98,23.776884]
[1731500368327,13.95462317,207.04,206.98,23.776884]
[1731500369605,13.95462317,207.04,206.99,2.4155]
[1731500369997,18.78452317,207.04,206.99,2.4155]
[1731500370205,13.95462317,207.04,206.99,2.4155]
[1731500370619,18.78452317,207.04,206.99,2.4155]
[1731500370807,13.95462317,207.04,206.99,2.4155]
[1731500372018,18.78452317,207.04,206.99,2.4155]
[1731500372807,13.95462317,207.04,206.99,2.4155]
[1731500374411,18.78452317,207.04,206.99,2.4155]
[1731500375901,13.95462317,207.0,206.94,6.0403]
[1731500376226,13.95462317,206.97,206.93,6.4647]
[1731500377221,13.95462317,206.99,206.93,14.9215]
[1731500377521,13.95462317,206.97,206.93,12.5053]
[1731500377733,13.95462317,206.95,206.89,6.0416]
[1731500378019,13.95462317,206.95,206.9,2.4165]
[1731500379015,13.95462317,206.93,206.89,8.4583]
[1731500379527,13.95462317,206.93,206.88,8.6682]
[1731500380633,13.95462317,206.93,206.88,14.7103]
[1731500382922,13.95462317,206.93,206.88,6.2514]
[1731500383431,13.95462317,206.93,206.88,8.6682]
[1731500383932,13.95462317,206.95,206.89,23.776884]
[1731500385134,13.95462317,206.95,206.89,26.193484]
[1731500387141,13.95462317,206.97,206.89,32.235284]
[1731500388522,13.95462317,206.97,206.89,44.318984]
[1731500393337,13.95462317,206.98,206.89,44.318984]
[1731500394427,13.95462317,206.97,206.89,44.318984]
[1731500396839,8.95432368,206.97,206.89,44.318984]
[1731500400532,8.95432368,206.95,206.89,32.235284]
[1731500401529,8.95432368,206.97,206.89,32.235284]
[1731500401947,4.8311,206.99,206.89,32.235284]
[1731500402243,8.95432368,207.02,206.91,23.776884]
[1731500402447,8.95432368,206.99,206.91,23.776884]
[1731500403040,8.95432368,206.98,206.91,23.776884]
[1731500403239,8.95432368,206.99,206.91,23.776884]
[1731500403825,8.95432368,207.0,206.91,23.776884]
[1731500404157,13.78532368,207.0,206.93,23.776884]
[1731500404442,13.78512368,207.01,206.93,23.776884]
[1731500404824,19.318873,207.06,206.93,23.776884]
[1731500405047,12.0727,207.08,206.92,20.5391]
[1731500405048,13.78332368,207.08,206.97,38.938984]
[1731500405539,4.829,207.08,206.97,38.938984]
[1731500405730,13.78332368,207.08,206.97,38.938984]
[1731500405930,8.95432368,207.06,206.98,8.4548]